fUSD/lending_fUSD_20240802
["ID","MTS","AMOUNT","RATE_DAILY","PERIOD"]
[333905647,1722618662834,-900.0,0.0001863,2]
[333905648,1722618662843,-795.68,0.0001863,2]
[333905649,1722618662852,-3689.15,0.0001863,2]
[333905650,1722618662861,-900.0,0.0001863,2]
[333905651,1722618662871,-500.0,0.0001863,2]
[333905652,1722618662880,-6997.91,0.0001863,2]
[333905653,1722618662889,-900.0,0.0001863,2]
[333905654,1722618662899,-900.0,0.0001863,2]
[333905655,1722618662908,-584.82,0.0001863,2]
[333905656,1722618662918,-900.0,0.0001863,2]
[333905657,1722618662927,-763.8,0.0001863,2]
[333905658,1722618662936,-500.0,0.0001863,2]
[333905659,1722618662945,-6716.32,0.0001863,2]
[333905660,1722618662955,-2488.4,0.0001863,2]
[333905661,1722618662964,-500.0,0.0001863,2]
[333905662,1722618662973,-4253.5,0.0001863,2]
[333905663,1722618662982,-4167.13,0.0001863,2]
[333905664,1722618662996,-2212.86,0.0001863,2]
[333905665,1722618663009,-4727.94,0.0001863,2]
[333905666,1722618663019,-3089.08,0.0001863,2]
[333905667,1722618663029,-500.0,0.0001863,2]
[333905668,1722618663039,-4955.01,0.0001863,2]
[333905669,1722618663049,-27182.53,0.0001863,2]
[333905670,1722618663058,-2935.33,0.0001863,2]
[333905671,1722618663068,-520.56,0.0001863,2]
[333905672,1722618663078,-827.57,0.0001863,2]
[333905673,1722618663087,-235.984737,0.0001863,2]
[333905674,1722618663097,-235.984737,0.0001863,2]
[333905675,1722618663107,-500.0,0.0001863,2]
[333905676,1722618663116,-235.984737,0.0001863,2]
[333905677,1722618663127,-235.984737,0.0001863,2]
[333905678,1722618663137,-4148.57,0.0001863,2]
[333905679,1722618663147,-235.984737,0.0001863,2]
[333905680,1722618663157,-235.984737,0.0001863,2]
[333905681,1722618663168,-235.984737,0.0001863,2]
[333905682,1722618663178,-235.984737,0.0001863,2]
[333905683,1722618663189,-235.984737,0.0001863,2]
[333905684,1722618663200,-500.0,0.0001863,2]
[333905685,1722618663210,-153.846148,0.0001863,2]
[333905686,1722618663221,-235.984737,0.0001863,2]
[333905687,1722618663232,-235.984737,0.0001863,2]
[333905688,1722618663244,-4874.17,0.0001863,2]
[333905689,1722618663255,-235.984737,0.0001863,2]
[333905690,1722618663264,-235.984737,0.0001863,2]
[333905691,1722618663275,-235.984737,0.0001863,2]
[333905692,1722618663285,-235.984737,0.0001863,2]
[333905693,1722618663295,-235.984737,0.0001863,2]
[333905694,1722618663305,-235.984737,0.0001863,2]
[333905695,1722618663315,-235.984737,0.0001863,2]
[333905696,1722618663325,-5390.12,0.0001863,2]
[333905697,1722618663335,-644.9,0.0001863,2]
[333905698,1722618663345,-4244.84,0.0001863,2]
[333905699,1722618663357,-254.99547702,0.0001863,2]
[333905700,1722618663370,-20340.0,0.0001863,2]
[333905701,1722618663380,-455.781378,0.00018635,2]
[333905702,1722618663390,-455.78137,0.00018635,2]
[333905703,1722618663402,-163.469564,0.00018635,2]
[333905704,1722618663412,-163.469569,0.00018635,2]
[333905705,1722618663422,-151.0,0.00018635,2]
[333905706,1722618663433,-577.2233387,0.00018635,2]
[333905707,1722618663446,-56966.0628296,0.00018635,2]
[333905708,1722618663457,-2892.1460901,0.00018635,2]
[333905709,1722618663467,-1751.5421481,0.00018635,2]
[333905710,1722618663477,-854.5908612,0.00018635,2]
[333905711,1722618663487,-5380.3853503,0.00018635,2]
[333905712,1722618663499,-6392.4041025,0.00018635,2]
[333905713,1722618663510,-151.0,0.00018635,2]
[333905714,1722618663519,-26558.6266163,0.00018687,2]
[333905715,1722618663529,-1558.2237399,0.00018687,2]
[333905716,1722618663538,-714.0127513,0.00018687,2]
[333905717,1722618663548,-1800.0,0.000187,6]
[333905718,1722618663557,-16750.00279211,0.00018733,2]
[333905719,1722618663568,-301.26673269,0.00018736,2]
[333905720,1722618663579,-181.8,0.00018746,2]
[333905721,1722618663589,-300.0,0.000188,6]
[333905722,1722618663600,-500.0,0.00018858,2]
[333905723,1722618663617,-204.979468,0.00018859,2]
[333905724,1722618663628,-208.115228,0.00018859,2]
[333905725,1722618663638,-271.676345,0.00018859,2]
[333905726,1722618663649,-413.612028,0.00018859,2]
[333905727,1722618663661,-1555.16084,0.00018859,2]
[333905728,1722618663671,-173.429356,0.00018859,2]
[333905729,1722618663681,-204.979457,0.00018859,2]
[333905730,1722618663691,-1915.18049,0.00018859,2]
[333905731,1722618663701,-271.676338,0.00018859,2]
[333905732,1722618663711,-1966.294462,0.00018859,2]
[333905733,1722618663721,-167.18364,0.00018859,2]
[333905734,1722618663732,-173.429357,0.00018859,2]
[333905735,1722618663744,-260.879083,0.00018859,2]
[333905736,1722618663754,-36637.655215,0.00018859,2]
[333905737,1722618663764,-393.665507,0.00018859,2]
[333905738,1722618663774,-12188.824431,0.00018859,2]
[333905739,1722618663784,-208.703266,0.00018859,2]
[333905740,1722618663795,-151.0,0.00018859,2]
[333905741,1722618663804,-254.70954,0.00018859,2]
[333905742,1722618663814,-219.513687,0.00018859,2]
[333905743,1722618663825,-219.513685,0.00018859,2]
[333905744,1722618663835,-151.0,0.00018859,2]
[333905745,1722618663845,-409.962742,0.00018859,2]
[333905746,1722618663855,-409.962734,0.00018859,2]
[333905747,1722618663866,-151.0,0.00018859,2]
[333905748,1722618663875,-191.87383,0.00018859,2]
[333905749,1722618663886,-191.873834,0.00018859,2]
[333905750,1722618663896,-347.028652,0.00018859,2]
[333905751,1722618663906,-347.028652,0.00018859,2]
[333905752,1722618663916,-151.0,0.00018859,2]
[333905753,1722618663927,-4057.258688,0.00018859,2]
[333905754,1722618663938,-4057.258687,0.00018859,2]
[333905755,1722618663948,-192.476989,0.00018859,2]
[333905756,1722618663958,-192.476994,0.00018859,2]
[333905757,1722618663968,-151.0,0.00018859,2]
[333905758,1722618663978,-171.520274,0.00018859,2]
[333905759,1722618663988,-1053.292819,0.00018859,2]
[333905760,1722618663998,-171.52027,0.00018859,2]
[333905761,1722618664008,-1053.292816,0.00018859,2]
[333905762,1722618664018,-1262.800762,0.00018859,2]
[333905763,1722618664028,-1262.800768,0.00018859,2]
[333905764,1722618664038,-151.0,0.00018859,2]
[333905765,1722618664048,-218.048106,0.00018859,2]
[333905766,1722618664059,-218.048112,0.00018859,2]
[333905767,1722618664068,-464.02988,0.00018859,2]
[333905768,1722618664077,-464.029876,0.00018859,2]
[333905769,1722618664087,-151.0,0.00018859,2]
[333905770,1722618664096,-900.0,0.00018859,2]
[333905771,1722618664106,-383.13088307,0.00018859,2]
[333905772,1722618790591,167.27,0.00026534,120]
[333905773,1722618837673,300.957336,0.00027,120]
[333905774,1722618903133,219.59090524,0.00010075,10]
[333905775,1722618903161,1039.88805001,0.00010075,10]
[333905776,1722618931153,218.87852728,0.00010075,2]
[333905777,1722618931181,193.91003548,0.00010075,2]
[333905778,1722618934028,897.12329644,0.00010075,2]
[333905779,1722618934056,1979.51773861,0.00010075,2]
[333905780,1722618934085,1979.51773861,0.00010075,2]
[333905781,1722618934112,1232.76978042,0.00010075,2]
[333905782,1722618934140,1940.20002778,0.00010075,2]
[333905783,1722618934167,1424.76571137,0.00010075,2]
[333905784,1722618934199,454.51813963,0.00010075,2]
[333905785,1722618934227,1979.51773861,0.00010075,2]
[333905786,1722618934256,1979.51773861,0.00010075,2]
[333905787,1722618934284,1130.7466441,0.00010075,2]
[333905788,1722618934311,1979.51773861,0.00010075,2]
[333905789,1722618934338,1979.51773861,0.00010075,2]
[333905790,1722618934365,1419.53802084,0.00010075,2]
[333905794,1722618939696,559.97971777,0.00010075,2]
[333905795,1722618939725,218.46349385,0.00010075,2]
[333905801,1722619802825,-2436.06731425,0.00010065,2]
[333905802,1722619803157,-2436.06731425,0.00010065,2]
[333905803,1722619803198,-1715.05300561,0.00010065,2]
[333905804,1722619803233,-150.0,0.00010074,2]
[333905805,1722619803261,-186.52470615,0.00010075,2]
[333905806,1722619803289,-384.48960249,0.00010075,2]
[333905807,1722619803331,-376.85118368,0.00010075,2]
[333905808,1722619803360,-1370.37246382,0.00010075,2]
[333905809,1722619803388,-688.84366675,0.00010075,2]
[333905810,1722619803451,-2436.06731425,0.00010075,2]
[333905811,1722619803491,-567.37390036,0.00010075,2]
[333905812,1722619803524,-2436.06731425,0.00010075,2]
[333905831,1722619831487,-462.53216332,9.975e-05,2]
[333905832,1722619831503,-1443.6854515,9.975e-05,2]
[333905833,1722619831520,-267.60104247,9.975e-05,2]
[333905834,1722619831530,-177534.93837877,0.00010075,2]
[333905835,1722619831540,-412.87338721,0.00010075,2]
[333905836,1722619831550,-425.59163485,0.00010075,2]
[333905837,1722619831560,-9264.38574936,0.00010075,2]
[333905838,1722619831570,-871.61874262,0.00010075,2]
[333905839,1722619831580,-275.51504818,0.00010075,2]
[333905840,1722619831589,-1633.08867531,0.00010075,2]
[333905841,1722619831599,-1222.86024952,0.00010075,2]
[333905842,1722619831609,-411.63443338,0.00010075,2]
[333905843,1722619831619,-155.0,0.00010075,2]
[333905844,1722619831628,-7573.35383779,0.00010075,2]
[333905845,1722619831639,-363.62565954,0.00010075,2]
[333905846,1722619831648,-227.58642964,0.00010075,2]
[333905847,1722619831658,-158.83612492,0.00010075,2]
[333905848,1722619831668,-20376.76805224,0.00010075,2]
[333905849,1722619831677,-1530.01818463,0.00010075,2]
[333905850,1722619831687,-179.68390712,0.00010075,2]
[333905851,1722619831697,-961.73385399,0.00010075,2]
[333905852,1722619831706,-485.27926909,0.00010075,2]
[333905853,1722619831716,-155.17684879,0.00010075,2]
[333905855,1722619831726,-1047.0,0.0001089,2]
[333905856,1722619831736,-11725.00195454,0.00010899,2]
[333905858,1722619831750,-180.76003963,0.000109,2]
[333905860,1722619831759,-841.72605144,0.000109,2]
[333905862,1722619831769,-150.0,0.00010999,2]
[333905864,1722619831778,-157.27342947,0.00010999,2]
[333905866,1722619831790,-57075.09978126,0.00011,2]
[333905868,1722619831802,-837482.9333066,0.00011,2]
[333905873,1722619831844,-2605.7965384,0.00011,2]
[333905876,1722619831867,-4506.81942661,0.00011,2]
[333905890,1722619839024,-422.93455817,0.00010997,2]
[333905891,1722619839069,-1423.16486127,0.00010997,2]
[333905892,1722619839085,-16967.37935425,0.00010997,2]
[333905893,1722619839095,-22712.86734049,0.00011,2]
[333905894,1722619839106,-2606.31547647,0.00011,2]
[333905895,1722619839118,-8173.52989368,0.00011,2]
[333905896,1722619839134,-1849.99999985,0.00011,2]
[333905897,1722619839150,-522.95955266,0.00011,2]
[333905898,1722619839161,-2604.62300768,0.00011,2]
[333905899,1722619839173,-490.1733676,0.00011,2]
[333905900,1722619839184,-630.37381688,0.00011,2]
[333905901,1722619839195,-672.16249084,0.00011,2]
[333905902,1722619839207,-495.17238159,0.00011,2]
[333905903,1722619839219,-41876.03156542,0.00011,2]
[333905904,1722619839232,-44504.86729044,0.00011,2]
[333905909,1722619839664,-259131.11895043,0.00011,2]
[333905910,1722619839676,-505.93543006,0.00011,2]
[333905911,1722619841040,-3140.08942128,0.000109,2]
[333905912,1722619841050,-1067.74307114,0.00011,2]
[333905913,1722619841061,-4019.09127962,0.00011,2]
[333905914,1722619841073,-315.6,0.00011,2]
[333905915,1722619841125,-6735.3438,0.00011,2]
[333905916,1722619841141,-870645.43617681,0.00011,2]
[333905950,1722619841660,-454.04212468,0.00011,2]
[333905952,1722619841672,-357.87790173,0.00011,2]
[333905956,1722619841692,-3108.2,0.00011,2]
[333906042,1722619842612,-379.230754,0.00010899,2]
[333906044,1722619842622,-9675.269246,0.00011,2]
[333906046,1722619842634,-322.80875993,0.00011,2]
[333906048,1722619842646,-705.64297035,0.00011,2]
[333906058,1722619842731,-228487.95895451,0.00011,2]
[333906062,1722619842764,-26893.4666,0.00011,2]
[333906065,1722619842781,-67240.32,0.00011,2]
[333906067,1722619842794,-5595.46345341,0.00011,2]
[333906071,1722619842829,-22505.20608078,0.00011,2]
[333906073,1722619842842,-5958.007393,0.00011,2]
[333906076,1722619842854,-571.48088153,0.00011,2]
[333906078,1722619842865,-530.05992504,0.00011,2]
[333906080,1722619842876,-1267.53629767,0.00011,2]
[333906187,1722619845703,-33509.99999996,0.00011,2]
[333906189,1722619845714,-9255.5,0.00011,2]
[333906212,1722619845935,-150.8736,0.0001089,2]
[333906214,1722619845944,-1414.90076616,0.00011,2]
[333906225,1722619846045,-866.90707002,0.00011,2]
[333906228,1722619846066,-941.56,0.00011,2]
[333906231,1722619846078,-436.15105824,0.00011,2]
[333906238,1722619846152,-2733.38035353,0.00011,2]
[333906270,1722619860962,2000.0,0.00027,120]
[333906271,1722619903606,2008.0,0.00027,120]
[333906280,1722619914782,5000.0,0.00025,60]
[333906281,1722619921507,-330.17140206,0.00010781,2]
[333906282,1722619921658,-219.59090524,0.00010781,2]
[333906283,1722620003355,-300.0,0.0001078,2]
[333906284,1722620003380,-9700.0,0.00010781,2]
[333906285,1722620005445,-10000.0,0.00010781,2]
[333906286,1722620005662,-10000.0,0.00010781,2]
[333906287,1722620006329,-10000.0,0.00010781,2]
[333906288,1722620006838,-10000.0,0.00010781,2]
[333906289,1722620007310,-10000.0,0.00010781,2]
[333906290,1722620007836,-10000.0,0.00010781,2]
[333906291,1722620008368,-10000.0,0.00010781,2]
[333906292,1722620008943,-10000.0,0.00010781,2]
[333906293,1722620009622,-10000.0,0.00010781,2]
[333906294,1722620010233,-10000.0,0.00010781,2]
[333906295,1722620010876,-10000.0,0.00010781,2]
[333906296,1722620011429,-10000.0,0.00010781,2]
[333906297,1722620035637,-10000.0,0.00010781,2]
[333906298,1722620036228,-10000.0,0.00010781,2]
[333906299,1722620036850,-10000.0,0.00010781,2]
[333906300,1722620038121,-10000.0,0.00010781,2]
[333906301,1722620038732,-10000.0,0.00010781,2]
[333906302,1722620039345,-3963.29057438,0.00010781,2]
[333906303,1722620039369,-1633.08867531,0.00010781,2]
[333906304,1722620039394,-696.12729063,0.00010781,2]
[333906305,1722620039420,-3707.49345968,0.00010781,2]
[333906306,1722620060778,-721.085168,0.00010727,2]
[333906307,1722620060802,-45.60821383,0.00010781,2]
[333906308,1722620060830,-1222.86024952,0.00010781,2]
[333906309,1722620060852,-227.58642964,0.00010781,2]
[333906310,1722620060876,-485.27926909,0.00010781,2]
[333906311,1722620060900,-7297.58066992,0.00010781,2]
[333906312,1722620061400,-1966.80507944,0.00010781,2]
[333906313,1722620061424,-7573.35383779,0.00010781,2]
[333906314,1722620061447,-425.59163485,0.00010781,2]
[333906315,1722620061470,-34.24944792,0.00010781,2]
[333906316,1722620062146,-377.38498546,0.00010781,2]
[333906317,1722620062169,-871.61874262,0.00010781,2]
[333906318,1722620062192,-306.04013556,0.00010781,2]
[333906319,1722620062216,-411.63443338,0.00010781,2]
[333906320,1722620062256,-1370.37246382,0.00010781,2]
[333906321,1722620062280,-6662.94923916,0.00010781,2]
[333906347,1722620508949,841.32315428,0.00027,120]
[333906413,1722620867059,-150.0,0.00010767,2]
[333906414,1722620867081,-150.0,0.0001078,2]
[333906415,1722620867107,-300.0,0.0001078,2]
[333906416,1722620867133,-151.0,0.00010781,2]
[333906417,1722620867156,-151.0,0.00010781,2]
[333906418,1722620867181,-500.0,0.00010781,2]
[333906419,1722620867204,-151.0,0.00010781,2]
[333906420,1722620867227,-500.0,0.00010781,2]
[333906421,1722620867249,-151.0,0.00010781,2]
[333906422,1722620867274,-500.0,0.00010781,2]
[333906423,1722620867304,-151.0,0.00010781,2]
[333906424,1722620867328,-500.0,0.00010781,2]
[333906425,1722620867350,-151.0,0.00010781,2]
[333906426,1722620867373,-500.0,0.00010781,2]
[333906427,1722620867397,-200.0,0.00010781,2]
[333906428,1722620867421,-500.0,0.00010781,2]
[333906429,1722620867444,-500.0,0.00010781,2]
[333906430,1722620867468,-920.0,0.00010781,2]
[333906431,1722620867497,-168.24239597,0.000109,2]
[333906432,1722620867526,-424.86075645,0.000109,2]
[333906433,1722620867550,-3280.89684758,0.000109,2]
[333906434,1722620869389,-7271.60491147,0.000109,2]
[333906435,1722620869412,-174.01038036,0.000109,2]
[333906436,1722620869437,-175.01487389,0.000109,2]
[333906437,1722620869461,-190.85369923,0.000109,2]
[333906438,1722620869486,-153.84,0.0001099,2]
[333906439,1722620869514,-2034.67613505,0.00011,2]
[333906440,1722620870219,-10000.0,0.00011,2]
[333906441,1722620871310,-10000.0,0.00011,2]
[333906442,1722620874222,-10000.0,0.00011,2]
[333906496,1722621031700,-214.2453801,0.000109,2]
[333906497,1722621031710,-174.01038036,0.000109,2]
[333906499,1722621031720,-382.37468085,0.000109,2]
[333906501,1722621031731,-300.0,0.00010999,2]
[333906504,1722621031740,-4985.46095069,0.00011,2]
[333906505,1722621031796,-19900.02,0.00011,2]
[333906506,1722621031954,-3360.42031715,0.00011,2]
[333906507,1722621031968,-638.42233608,0.00011,2]
[333906508,1722621031979,-760.2,0.00011,2]
[333906513,1722621032635,-277.75573569,0.00011,2]
[333906523,1722621038757,-367.26759364,0.00011,2]
[333906524,1722621038770,-3663.9822,0.00011,2]
[333906525,1722621038782,-659.0,0.00011,2]
[333906526,1722621038794,-4254.89216698,0.00011,2]
[333906527,1722621038807,-13425.368,0.00011,2]
[333906528,1722621038818,-1240.2461345,0.00011,2]
[333906529,1722621038830,-3347.23544621,0.00011,2]
[333906530,1722621038842,-6677.49688648,0.00011,2]
[333906544,1722621039805,-1596.3,0.00011,2]
[333906545,1722621039848,-879.67474592,0.00011,2]
[333906546,1722621040088,-1266.705,0.00011,2]
[333906547,1722621040100,-865.0,0.00011,2]
[333906548,1722621040112,-33484.25,0.00011,2]
[333906564,1722621042699,-2150.41584893,0.00011,2]
[333906565,1722621042711,-11316.48049096,0.00011,2]
[333906566,1722621042902,-7764.0017081,0.00011,2]
[333906567,1722621042914,-422569.23305836,0.00011,2]
[333906568,1722621042927,-1516.6,0.00011,2]
[333906569,1722621042939,-15071.0223875,0.00011,2]
[333906570,1722621042952,-13346.73340001,0.00011,2]
[333906571,1722621042964,-424.56451937,0.00011,2]
[333906572,1722621042976,-6359.21636329,0.00011,2]
[333906573,1722621043016,-6679.72932,0.00011,2]
[333906582,1722621043892,-949.94502,0.00011,2]
[333906583,1722621043904,-404.8565301,0.00011,2]
[333906584,1722621043917,-1266.46,0.00011,2]
[333906585,1722621043928,-1661.60734328,0.00011,2]
[333906586,1722621043943,-657.15745888,0.00011,2]
[333906587,1722621043956,-661.3131406,0.00011,2]
[333906588,1722621045046,-38710.46975587,0.00011,2]
[333906589,1722621046217,-697.92298059,0.00011,2]
[333906590,1722621046230,-1980.82845001,0.00011,2]
[333906591,1722621046256,-500.0,0.00011,2]
[333906592,1722621046267,-1144.25759762,0.00011,2]
[333906593,1722621046278,-511.36027468,0.00011,2]
[333906594,1722621046292,-1122.59869064,0.00011,2]
[333906595,1722621046303,-1387.61777103,0.00011,2]
[333906596,1722621046314,-2026.77504163,0.00011,2]
[333906598,1722621046325,-166565.00523649,0.00011,2]
[333906600,1722621046336,-1082.61991605,0.00011,2]
[333906601,1722621046347,-475.81398569,0.00011,2]
[333906602,1722621046362,-4481.46949273,0.00011,2]
[333906603,1722621046381,-5536.55028458,0.00011,2]
[333906604,1722621046408,-2133.67541036,0.00011,2]
[333906605,1722621046423,-1625.95161616,0.00011,2]
[333906606,1722621046433,-315.05283752,0.00011,2]
[333906609,1722621073300,208.06,0.0001799,120]
[333906633,1722621293322,-5832.6864,0.000109,2]
[333906635,1722621297732,-5551.71996629,0.000109,2]
[333906636,1722621297757,-1089.55055981,0.00010999,3]
[333906637,1722621297780,-150.0,0.00010999,2]
[333906638,1722621297807,-3208.7294739,0.00011,2]
[333906640,1722621303199,-10000.0,0.00011,2]
[333906641,1722621303670,-10000.0,0.00011,2]
[333906642,1722621304157,-10000.0,0.00011,2]
[333906643,1722621304595,-10000.0,0.00011,2]
[333906644,1722621305114,-10000.0,0.00011,2]
[333906645,1722621305539,-10000.0,0.00011,2]
[333906646,1722621306617,-10000.0,0.00011,2]
[333906647,1722621306840,-10000.0,0.00011,2]
[333906648,1722621307729,-10000.0,0.00011,2]
[333906649,1722621308779,-10000.0,0.00011,2]
[333906703,1722621980103,-385.67646644,0.00011,10]
[333906704,1722621991849,-6572.0,0.00010567,2]
[333906705,1722621991870,-7595.64298744,0.000108,2]
[333906706,1722621991891,-1664.160593,0.00010845,2]
[333906707,1722621991912,-172.01584427,0.000109,2]
[333906708,1722621991934,-3610.50410885,0.000109,2]
[333906709,1722622003135,-2796.09406136,0.000109,2]
[333906710,1722622005242,-3839.36755946,0.000109,2]
[333906711,1722622005266,-344.13721272,0.000109,2]
[333906712,1722622005292,-182.54882854,0.000109,2]
[333906713,1722622005314,-150.0,0.00010934,2]
[333906714,1722622005336,-373.11,0.00010935,2]
[333906715,1722622005358,-373.11,0.00010935,2]
[333906716,1722622005380,-373.11,0.00010935,2]
[333906717,1722622005402,-373.11,0.00010935,2]
[333906718,1722622005423,-373.11,0.00010935,2]
[333906719,1722622005444,-373.11,0.00010935,2]
[333906720,1722622005470,-373.11,0.00010935,2]
[333906721,1722622005491,-373.11,0.00010935,2]
[333906722,1722622005513,-373.11,0.00010935,2]
[333906723,1722622005533,-373.11,0.00010935,2]
[333906724,1722622005561,-373.11,0.00010935,2]
[333906725,1722622005582,-11379.73639928,0.00010945,2]
[333906728,1722622060661,-172.01584427,0.000109,2]
[333906729,1722622060683,-1284.13188333,0.000109,2]
[333906730,1722622060706,-202.7013921,0.000109,2]
[333906731,1722622060728,-231.63557714,0.000109,2]
[333906732,1722622060753,-19767.51530316,0.000109,2]
[333906741,1722622102318,-300.0,0.00010899,2]
[333906742,1722622102340,-1309.1615635,0.000109,2]
[333906743,1722622102362,-550.8384365,0.000109,2]
[333906788,1722622232243,-309.72349143,0.00010899,2]
[333906790,1722622232253,-300.0,0.00010899,2]
[333906792,1722622232262,-758.323127,0.000109,2]
[333906793,1722622232272,-411.63443338,0.000109,2]
[333906794,1722622232281,-485.27926909,0.000109,2]
[333906795,1722622232291,-155.0,0.000109,2]
[333906797,1722622232301,-170.34699346,0.000109,2]
[333906799,1722622232311,-765.00070333,0.000109,2]
[333906800,1722622232323,-284.72676536,0.000109,2]
[333906801,1722622232333,-227.58642964,0.000109,2]
[333906802,1722622232342,-419.27697,0.000109,2]
[333906803,1722622232530,-5.102e-05,0.000109,2]
[333906804,1722622232545,-776.61022031,0.000109,2]
[333906805,1722622232560,-469.02406266,0.000109,2]
[333906806,1722622232571,-4591.446,0.000109,2]
[333906808,1722622232585,-702.12194755,0.000109,2]
[333906810,1722622232597,-2305.90649782,0.000109,2]
[333906812,1722622232607,-155.0,0.000109,2]
[333906814,1722622232618,-20375.34613072,0.000109,2]
[333906816,1722622232628,-291.39045799,0.000109,2]
[333906818,1722622232638,-10858.10691347,0.000109,2]
[333906823,1722622232661,-415.22091175,0.000109,2]
[333906825,1722622232672,-172389.96274916,0.000109,2]
[333906827,1722622232682,-1370.37246382,0.000109,2]
[333906828,1722622232691,-155.0,0.000109,2]
[333906830,1722622232700,-1284.13188333,0.000109,2]
[333906832,1722622232709,-1222.86024952,0.000109,2]
[333906834,1722622232718,-871.61874262,0.000109,2]
[333906835,1722622232733,-363.7477789,0.000109,2]
[333906837,1722622232742,-2331.39853397,0.000109,2]
[333906839,1722622232752,-449.14284782,0.000109,2]
[333906840,1722622232762,-155.0,0.000109,2]
[333906842,1722622232771,-155.0,0.000109,2]
[333906844,1722622232780,-425.59163485,0.000109,2]
[333906845,1722622232789,-7573.35383779,0.000109,2]
[333906846,1722622232798,-736.5947,0.000109,2]
[333906847,1722622232808,-412.76630026,0.000109,2]
[333906848,1722622232818,-1267.97582624,0.000109,2]
[333906849,1722622232827,-257.1176443,0.000109,10]
[333906850,1722622232836,-1500.0,0.000109,2]
[333906851,1722622232846,-790.49086952,0.000109,2]
[333906852,1722622232855,-692.69113318,0.000109,2]
[333906853,1722622232864,-299.71268725,0.000109,2]
[333906854,1722622232873,-790.49086952,0.000109,2]
[333906855,1722622232883,-50000.0,0.000109,2]
[333906856,1722622232892,-692.69113318,0.000109,2]
[333906857,1722622232901,-150.0,0.00010944,2]
[333906858,1722622232911,-79574.86057812,0.00010945,2]
[333906859,1722622232920,-1714.63302572,0.00010945,2]
[333906860,1722622232929,-17234.4440978,0.00010945,2]
[333906861,1722622232939,-8092.99732383,0.00011,2]
[333906862,1722622232948,-250.0,0.00011,2]
[333906863,1722622232957,-96674.1488368,0.00011,2]
[333906864,1722622232988,-938.21279485,0.00011,2]
[333906877,1722622238912,-6005.54407149,0.00011,2]
[333906878,1722622238924,-1650.0,0.00011,2]
[333906879,1722622238936,-51509.99793906,0.00011,2]
[333906880,1722622238946,-7689.65,0.00011,2]
[333906881,1722622238955,-499.99,0.00011,2]
[333906882,1722622238966,-3224.1692478,0.00011097,2]
[333906883,1722622238975,-4158.633278,0.00011097,2]
[333906884,1722622238985,-240.19743922,0.00011105,2]
[333906885,1722622238995,-285.75,0.00011308,2]
[333906886,1722622239005,-846.01,0.00011308,2]
[333906887,1722622239014,-923.43,0.00011448,2]
[333906888,1722622239025,-309.72349143,0.00011589,2]
[333906889,1722622239034,-499.99,0.00011606,2]
[333906890,1722622239042,-299.99,0.00011606,2]
[333906891,1722622239051,-1680.59,0.00011608,2]
[333906892,1722622239061,-9200.63,0.00011704,2]
[333906893,1722622239070,-22088.28,0.00011704,2]
[333906894,1722622239079,-1000.0,0.00011717,2]
[333906895,1722622239089,-385.82,0.0001172,2]
[333906896,1722622239098,-266.6,0.00011742,2]
[333906897,1722622239108,-250.0,0.00011746,2]
[333906898,1722622239117,-8721.29,0.00011746,2]
[333906899,1722622239126,-1739.64,0.00011771,2]
[333906900,1722622239135,-2678.96,0.00011782,2]
[333906901,1722622239145,-41138.09796065,0.000118,2]
[333906902,1722622239155,-1283.94,0.00011814,2]
[333906903,1722622239164,-255.0,0.00011983,2]
[333906904,1722622239173,-550.0,0.00012,2]
[333906905,1722622239183,-6630.63556638,0.0001236,2]
[333906906,1722622239192,-309.72349143,0.00012378,2]